Cogmind - Beta 13 @@@ ROGUE MODE // 2024.06.19 @ 13:11:32 Player: MarKhan Result: Destroyed self with Subdweller Shrapnel Launcher Performance ------------- Evolutions (0) 0 Regions Visited (2) 400 Robots Destroyed (32) 160 Value Destroyed (708) 708 Prototype IDs (3) 60 Alien Tech Used (0) 0 Bonus (0) 0 TOTAL SCORE: 1328 Bonus ------- None Cogmind --------- Core Integrity 0/250 Matter 258/300 Energy 235/250 System Corruption 1% Temperature Cool (0) Movement Rolling (120) Ox1 Location -10/Subcaves Parts ------- > --- POWER (1) -------- Ion Engine > --- PROPULSION (2) --- Subdweller Monowheel Subdweller Monowheel > --- UTILITY (2) ------ High-capacity Storage Unit Subdweller Optics > --- WEAPON (2) ------- Subdweller Machine Gun Subdweller Shrapnel Launcher > --- INVENTORY (20) --- Ion Engine Subdweller Power Source Subdweller Monowheel Heat Sink High-capacity Storage Unit Large Battery (200) Large Matter Pod (150) High-capacity Matter Pod (200) Structural Scanner Improved Terrain Scanner Seismic Detector Targeting Computer Core Shielding Core Shielding Hacking Suite Light Assault Rifle Subdweller Machine Gun Subdweller Machine Gun Battle Cannon Mining Claw Peak State ------------ > --- POWER ------------ Ion Engine > --- PROPULSION ------- Subdweller Monowheel Subdweller Monowheel > --- UTILITY ---------- High-capacity Storage Unit Subdweller Optics > --- WEAPON ----------- Subdweller Machine Gun Subdweller Machine Gun > --- INVENTORY -------- Ion Engine Subdweller Power Source Subdweller Monowheel Heat Sink High-capacity Storage Unit Large Battery Large Matter Pod High-capacity Matter Pod Structural Scanner Subdweller Optics Improved Terrain Scanner Seismic Detector Targeting Computer Core Shielding Core Shielding Hacking Suite Light Assault Rifle Subdweller Machine Gun Battle Cannon Mining Claw [Rating: 14] Favorites ----------- Power Ion Engine Engine Ion Engine Propulsion Light Treads Treads Light Treads Wheel Wheel Utility High-capacity Storage Unit Device Subdweller Optics Storage High-capacity Storage Unit Protection Core Shielding Weapon Light Assault Rifle Energy Gun Medium Laser Energy Cannon Beam Cannon Ballistic Gun Light Assault Rifle Launcher Grenade Launcher Slashing Weapon Mining Claw Build | -11 -10 -10 ------- Run | Yrd Mat Sub Slots Evolved . | . . . Power . | . . . Propulsion . | . . . Utility . | . . . Weapon . | . . . Parts Attached 44 | 7 16 21 Power 6 | 1 4 1 Engine 6 | 1 4 1 Core . | . . . Reactor . | . . . Propulsion 8 | 2 1 5 Treads 4 | 2 1 1 Leg . | . . . Wheel 4 | . . 4 Hover . | . . . Flight . | . . . Utility 13 | 2 5 6 Device 8 | 1 2 5 Storage 3 | 1 2 . Processor . | . . . Hackware . | . . . Protection 2 | . 1 1 Artifact . | . . . Weapon 17 | 2 6 9 Energy Gun 5 | 1 3 1 Energy Cannon 3 | . 1 2 Ballistic Gun 5 | 1 1 3 Ballistic Cannon . | . . . Launcher 2 | . . 2 Special Weapon . | . . . Impact Weapon . | . . . Slashing Weapon 2 | . 1 1 Piercing Weapon . | . . . Special Melee Weapon . | . . . Unidentified Prototypes . | . . . Parts Lost 9 | . 3 6 Power 2 | . 1 1 Propulsion 3 | . . 3 Utility . | . . . Weapon 4 | . 2 2 Highest Loss Streak 6 | . 2 6 To Critical Strikes . | . . . Average Slot Usage (%) 98 | . 99 92 Engine 13 | . 13 13 Treads 23 | . 28 6 Wheel 3 | . . 15 Device 4 | . 3 9 Storage 14 | . 14 14 Protection 9 | . 10 4 Energy Gun 9 | . 9 8 Energy Cannon 5 | . 6 1 Ballistic Gun 11 | . 11 12 Naked Turns . | . . . Heaviest Build 55 | 14 50 55 Greatest Support 40 | 40 40 40 Greatest Overweight (x) 5 | . 1 5 Average Overweight (x) 1 | . . 2 Largest Inventory Capacity 20 | 8 20 20 Average Capacity 16 | 7 16 20 Most Carried 20 | 8 20 20 Average Carried 15 | 5 15 18 Final Capacity 20 | 8 20 20 Final Carried 20 | 8 20 20 Class Distribution -------------------- 90% | Mutant 9% | Scavenger-Mutant Dominant Class ---------------- Mutant | -10/Materials Mutant | -10/Subcaves Resources | -11 -10 -10 ----------- Run | Yrd Mat Sub Matter Collected 978 | 300 414 264 Remotely . | . . . Salvage Created 1031 | 97 745 189 Parts 81 | 7 56 18 Haulers Intercepted 2 | . 2 . Recyclers Shooed 4 | . 4 . Parts Field Recycled . | . . . Retrieved Matter . | . . . Parts Self-Destructed 16 | . . 16 Prevented . | . . . Kills | -11 -10 -10 ------- Run | Yrd Mat Sub Combat Hostiles Destroyed 21 | . 14 7 Guns 12 | . 6 6 Cannons 6 | . 6 . AOE 2 | . 1 1 Classes Destroyed 8 | 3 4 1 Worker 4 | 1 3 . Tunneler 1 | 1 . . Hauler 2 | . 2 . Recycler 3 | 1 2 . Operator 1 | . 1 . Swarmer 5 | . 5 . Grunt 9 | . 9 . Subdweller 7 | . . 7 Best Kill Streak 4 | 2 4 2 Combat Bots Only 3 | . 3 2 Max Kills in Single Turn 1 | 1 1 1 Gunslinging . | . . . Exploded 1 | . 1 1 Melee . | . . . Uniques/NPCs Destroyed . | . . . Combat | -11 -10 -10 -------- Run | Yrd Mat Sub Hostile Shots Fired 98 | . 56 42 Missed 30 | . 17 13 Damage Taken 1301 | . 650 651 Core 253 | . 108 145 Absorbed by Shields . | . . . Redirected to Shielding 11 | . 1 10 Core Remaining (%) 100 | 100 . . Volleys Fired 126 | 33 63 30 Largest 2 | 1 2 2 Hottest 100 | 20 100 80 Shots Fired 208 | 33 127 48 Gun 169 | 33 101 35 Cannon 32 | . 26 6 Launcher 7 | . . 7 Special . | . . . Kinetic 99 | 33 43 23 Thermal 67 | . 48 19 Explosive 6 | . . 6 Electromagnetic 36 | . 36 . Robot Hit Streak 15 | 4 8 15 Robot Miss Streak 4 | 4 4 2 Penetration Max . | . . . Secondary Targets 1 | . 1 . Max Gunslinging Chain 1 | . 1 . Shots Hit Robots 120 | 18 66 36 Core Hits 59 | 8 33 18 Critical Kills . | . . . Critical Parts Destroyed . | . . . Critical Strikes 1 | . 1 . Burn 1 | . 1 . Melee Attacks 3 | . 1 2 Impact . | . . . Slashing 3 | . 1 2 Piercing . | . . . Sneak Attacks . | . . . Combat Hostiles . | . . . Follow-up Attacks . | . . . Damage Inflicted 1878 | 164 997 717 Guns 1044 | 156 576 312 Cannons 295 | . 261 34 Explosions 421 | . 72 349 Melee 22 | . . 22 Ramming 96 | 8 88 . Kinetic 509 | 156 155 198 Thermal 581 | . 433 148 Explosive 349 | . . 349 Electromagnetic 321 | . 321 . Impact . | . . . Slashing 22 | . . 22 Piercing . | . . . Highest Corruption 1 | . 1 1 Average Corruption 1 | . 1 1 Corruption Purged . | . . . Corruption Blocked . | . . . Effects 16 | . 14 2 Message Errors 3 | . 2 1 Matter Fused 3 | . 3 . Heat Flow Errors 2 | . 2 . Energy Discharges 1 | . 1 . Data Loss (minor) 1 | . 1 . Data Loss (major) 2 | . 1 1 Misfires 2 | . 2 . Alerts 2 | . 2 . Overload Shots . | . . . Overflow Damage . | . . . Projectiles . | . . . Explosions . | . . . Melee . | . . . Knockbacks 1 | . 1 . Impact 1 | . 1 . Kinetic . | . . . Secondary . | . . . Self-Inflicted Damage 87 | . 31 56 Shots 2 | . 1 1 Rammed 21 | 7 14 . Targets Rammed 22 | 7 15 . Kicked . | . . . Crushed 1 | . 1 . Highest Temperature 276 | . 276 . Average Temperature 69 | . 69 . Received Heat Transfer 153 | . 147 6 Siege Activations . | . . . Robots Corrupted 1 | . 1 . Combat Hostiles 1 | . 1 . Parts Fried 2 | . 2 . Impact Corruptions . | . . . Robots Melted . | . . . Combat Hostiles . | . . . Parts Melted 1 | . 1 . Heat Transferred 1432 | . 1025 407 Parts Sabotaged . | . . . Parts Stolen . | . . . Parts Stripped . | . . . Power Chain Reactions 1 | . 1 . Alert | -11 -10 -10 ------- Run | Yrd Mat Sub Peak Influence 202 | 15 202 . Initial 9 | . 9 . Average 82 | 5 90 . Maximum Alert Level 1 | . 1 . Low Security (%) 95 | 100 94 . Level 1 4 | . 5 . Level 2 . | . . . Level 3 . | . . . Level 4 . | . . . Level 5 . | . . . High Security . | . . . Max Security . | . . . Squads Dispatched 5 | . 5 . Investigation 4 | . 4 . Extermination . | . . . Reinforcement 1 | . 1 . Assault . | . . . Garrison . | . . . Intercept . | . . . Searches Triggered . | . . . Construction Impeded . | . . . Haulers Reinforced . | . . . Active Scanning Responses . | . . . Cargo Convoy Interrupts . | . . . Stealth | -11 -10 -10 --------- Run | Yrd Mat Sub Distress Signals 1 | . 1 . Communications Jammed . | . . . Distress Signals . | . . . Times Spotted 44 | . 35 9 Peak Tracking Total 4 | . 4 2 Tactical Retreats 1 | . 1 . Traps | -11 -10 -10 ------- Run | Yrd Mat Sub Traps Triggered 2 | . 2 . Indirectly . | . . . Trap Hack Attempts . | . . . Triggered . | . . . Disarmed . | . . . Reprogrammed . | . . . Reused . | . . . Traps Extracted . | . . . Installed . | . . . Triggered . | . . . Machines | -11 -10 -10 ---------- Run | Yrd Mat Sub Machines Disabled 1 | . 1 . Max in Single Turn 1 | . 1 . Machines Repaired . | . . . Machines Dismantled . | . . . Machines Sabotaged . | . . . Overloaded Fab Kills . | . . . Hacking | -11 -10 -10 --------- Run | Yrd Mat Sub Machines Accessed 7 | . 7 . Terminals 6 | . 6 . Fabricators . | . . . Repair Stations . | . . . Recycling Units 1 | . 1 . Scanalyzers . | . . . Garrison Access . | . . . Total Hacks 28 | . 28 . Successful 14 | . 14 . Failed 14 | . 14 . Catastrophic 3 | . 3 . Database Lockouts . | . . . Manual 18 | . 18 . Terminals 25 | . 25 . Fabricators . | . . . Repair Stations . | . . . Recycling Units 3 | . 3 . Scanalyzers . | . . . Garrison Access . | . . . Terminal Hacks 5 | . 5 . Part Schematic 1 | . 1 . Robot Analysis 1 | . 1 . Prototype ID Bank 2 | . 2 . Zone Layout 1 | . 1 . Fabricator Hacks . | . . . Repair Station Hacks . | . . . Recycling Unit Hacks 3 | . 3 . Process 1 | . 1 . Report Inventory 1 | . 1 . Retrieve Matter 1 | . 1 . Scanalyzer . | . . . Garrison Access Hacks . | . . . Unauthorized Hacks 6 | . 6 . Terminals 6 | . 6 . Botnet 5 | . 5 . Operators 1 | . 1 . Fabricators . | . . . Repair Stations . | . . . Recycling Units . | . . . Scanalyzers . | . . . Garrison Access . | . . . Data Cores Recovered . | . . . Used . | . . . Hacking Detections 6 | . 6 . Full Trace Events 6 | . 6 . Feedback Events . | . . . Feedback Blocked . | . . . Robot Schematics Acquired . | . . . Robots Built . | . . . Authchips . | . . . Time . | . . . Total Robot Build Rating . | . . . Part Schematics Acquired 1 | . 1 . Parts Built . | . . . Authchips . | . . . Time . | . . . Total Part Build Rating . | . . . Parts Repaired . | . . . Time . | . . . Parts Recycled . | . . . Recycled Matter 98 | . 98 . Retrieved Matter 98 | . 98 . Retrieved Components . | . . . Parts Scanalyzed . | . . . Part Schematics Acquired . | . . . Parts Damaged . | . . . Bothacking | -11 -10 -10 ------------ Run | Yrd Mat Sub Used RIF Installer . | . . . Robots Hacked . | . . . Non-combat . | . . . Combat . | . . . Robot Hacks Applied . | . . . Relay Couplers Released . | . . . Fabnet Peak Effective % . | . . . Robots Rewired . | . . . Allies Hacked . | . . . Hacks Repelled . | . . . Allies | -11 -10 -10 -------- Run | Yrd Mat Sub Total Allies . | . . . Largest Group . | . . . Highest-Rated Group . | . . . Highest-Rated Ally . | . . . Total Orders . | . . . Ally Attacks . | . . . Total Damage . | . . . Kills . | . . . Allies Corrupted . | . . . Allies Melted . | . . . Intel | -11 -10 -10 ------- Run | Yrd Mat Sub Robot Analysis Total 1 | . 1 . Derelict Logs Recovered . | . . . Drone Launches . | . . . Drone Recoveries . | . . . Exploration | -11 -10 -10 ------------- Run | Yrd Mat Sub Turns Passed 2816 | 210 2064 542 Spaces Moved 1213 | 77 844 292 Core 2 | 2 . . Treads 954 | 75 844 35 Legs . | . . . Wheels 257 | . . 257 Hover . | . . . Flight . | . . . Fastest Speed 50 | 50 160 107 Average Speed 192 | 157 213 142 Slowest Speed 240 | 160 240 240 Overloaded Moves . | . . . Propulsion Burnouts . | . . . Robots Hopped . | . . . Cave-ins Triggered . | . . . Exploration Rate (%) 39 | 6 92 21 Regions Visited 2 Branch Regions 1 Pre-discovered Areas . | . . . Known Exits Taken . | . . . Unknown Exits Taken 2 | 1 1 . Scrap Searched 1 | . . 1 Spaces Dug 1 | . 1 . Terrain Destroyed 27 | . 7 20 Melee 1 | . 1 . Projectile . | . . . AOE 26 | . 6 20 Terrain Rammed . | . . . Walls Destroyed . | . . . Machines Disabled . | . . . Actions | -11 -10 -10 --------- Run | Yrd Mat Sub Total 1497 | 133 994 370 Wait 8 | . 2 6 Move 1211 | 76 843 292 Hop . | . . . Pick Up 49 | 9 31 9 Fast Attach 9 | 7 . 2 Attach 8 | . 3 5 Detach . | . . . Swap 27 | . 13 14 Drop 34 | 1 23 10 Fire 126 | 33 63 30 Melee 3 | . 1 2 Ram . | . . . Kick . | . . . Crush 22 | 7 15 . Escape Stasis . | . . . Rewire . | . . . Trap . | . . . Miscellaneous . | . . . Route ------- -11/Scrapyard -10/Materials (discovered 4 exits: [*Mat x3] / [*Sub]) -10/Subcaves (discovered 1 exit: [*Mat]) History --------- Turn | Location | Event 21 | -11/Scrapyard | Discovered new exit (range 13) 211 | -11/Scrapyard | Entered Materials 313 | -10/Materials | Build established: Mutant 388 | -10/Materials | Discovered new exit (range 6) 801 | -10/Materials | Discovered new exit (range 10) 1663 | -10/Materials | Discovered new exit (range 10) 2256 | -10/Materials | Discovered new exit (range 8) 2275 | -10/Materials | Entered Subcaves 2386 | -10/Subcaves | Core integrity fell below 50% 2438 | -10/Subcaves | Lost 6 parts (1p3n2w) 2685 | -10/Subcaves | Discovered new exit (range 14) 2759 | -10/Subcaves | Shifting Twisted Machinery released Sub. Laser 2759 | -10/Subcaves | Shifting Twisted Machinery released Sub. Monowheel 2764 | -10/Subcaves | Core integrity fell below 20% 2811 | -10/Subcaves | Ambushed by Subdwellers from Twisted Machinery 2817 | -10/Subcaves | Destroyed self with Subdweller Shrapnel Launcher Last Messages --------------- 02737_ Subatomizers dissect the Disposable Heat Sink. 02742_ Dropped Med. Laser. 02744_ Acquired Sub. Machine Gun. 02749_ Subatomizers dissect the Disposable Heat Sink. Sub. Laser falls loose from the Twisted Machinery. Sub. Monowheel falls loose from the Twisted Machinery. 02760_ Dropped Wheel. 02762_ System corrupted: Substantial component data lost. 02764_ 6Q-143(R) destroyed. 02771_ Dropped Sub. Optics. 02771_ Acquired Sub. Shrapnel Launcher. 02772_ Acquired 24 matter. 02807_ HE1LR>>F=VRWEMRK#>MMHC3NIBZCEOVT